[Event "Snabb-SM för veteraner, 50+ 2019"]
[Site "Schackcentrum, Vegagatan 20, Gothenburg, Sweden"]
[Date "2019.10.05"]
[Round "4.2"]
[White "Holst, Conny"]
[Black "Svenn, Gosta"]
[Result "0-1"]
[TimeControl "15 minutes + 10 seconds per move from move one"]
[BlackTitle "FM"]
[WhiteFideId "1701428"]
[BlackFideId "1700553"]
[WhiteElo "2166"]
[BlackElo "2272"]

1. d4 {[%clk 00:15:17]} {[%emt 00:00:02]} e6 {[%clk 00:15:13]} {[%emt
00:00:07]} 2. c4 {[%clk 00:15:23]} {[%emt 00:00:03]} f5 {[%clk 00:15:21]}
{[%emt 00:00:03]} 3. Nf3 {[%clk 00:15:29]} {[%emt 00:00:03]} Nf6 {[%clk
00:15:29]} {[%emt 00:00:02]} 4. g3 {[%clk 00:15:36]} {[%emt 00:00:03]} Bb4+
{[%clk 00:15:24]} {[%emt 00:00:16]} 5. Bd2 {[%clk 00:14:35]} {[%emt 00:01:12]}
Be7 {[%clk 00:15:28]} {[%emt 00:00:05]} 6. Nc3 {[%clk 00:14:02]} {[%emt
00:00:44]} O-O {[%clk 00:15:09]} {[%emt 00:00:29]} 7. Bg2 {[%clk 00:14:09]}
{[%emt 00:00:03]} d6 {[%clk 00:14:44]} {[%emt 00:00:34]} 8. O-O {[%clk
00:13:45]} {[%emt 00:00:34]} Ne4 {[%clk 00:14:15]} {[%emt 00:00:39]} 9. Qc2
{[%clk 00:12:59]} {[%emt 00:00:57]} Nxd2 {[%clk 00:13:51]} {[%emt 00:00:34]} 10.
Qxd2 {[%clk 00:13:06]} {[%emt 00:00:02]} Nc6 {[%clk 00:13:18]} {[%emt
00:00:42]} 11. e4 {[%clk 00:12:51]} {[%emt 00:00:25]} e5 {[%clk 00:12:17]}
{[%emt 00:01:12]} 12. d5 {[%clk 00:11:39]} {[%emt 00:01:23]} Nb8 {[%clk
00:12:16]} {[%emt 00:00:10]} 13. c5 {[%clk 00:11:03]} {[%emt 00:00:47]} Nd7
{[%clk 00:08:16]} {[%emt 00:04:09]} 14. cxd6 {[%clk 00:10:45]} {[%emt
00:00:28]} cxd6 {[%clk 00:08:22]} {[%emt 00:00:04]} 15. exf5 {[%clk 00:10:21]}
{[%emt 00:00:34]} Rxf5 {[%clk 00:07:32]} {[%emt 00:01:00]} 16. Qc2 {[%clk
00:08:35]} {[%emt 00:01:56]} Rf8 {[%clk 00:06:56]} {[%emt 00:00:45]} 17. Nb5
{[%clk 00:07:55]} {[%emt 00:00:51]} Nc5 {[%clk 00:04:52]} {[%emt 00:02:14]} 18.
Nd2 {[%clk 00:06:48]} {[%emt 00:01:17]} Bf5 {[%clk 00:04:34]} {[%emt 00:00:28]}
19. Ne4 {[%clk 00:06:02]} {[%emt 00:00:56]} a6 {[%clk 00:04:01]} {[%emt
00:00:44]} 20. Nbc3 {[%clk 00:06:04]} {[%emt 00:00:08]} b5 {[%clk 00:04:05]}
{[%emt 00:00:06]} 21. a3 {[%clk 00:05:24]} {[%emt 00:00:50]} Rc8 {[%clk
00:04:09]} {[%emt 00:00:06]} 22. Qd1 {[%clk 00:04:38]} {[%emt 00:00:56]} Qd7
{[%clk 00:04:01]} {[%emt 00:00:18]} 23. b4 {[%clk 00:04:17]} {[%emt 00:00:31]}
Nxe4 {[%clk 00:04:01]} {[%emt 00:00:10]} 24. Nxe4 {[%clk 00:04:25]} {[%emt
00:00:02]} h6 {[%clk 00:03:30]} {[%emt 00:00:41]} 25. Rc1 {[%clk 00:04:19]}
{[%emt 00:00:16]} Rxc1 {[%clk 00:03:12]} {[%emt 00:00:29]} 26. Qxc1 {[%clk
00:04:27]} {[%emt 00:00:02]} Rc8 {[%clk 00:03:19]} {[%emt 00:00:03]} 27. Qd2
{[%clk 00:04:11]} {[%emt 00:00:26]} Rc4 {[%clk 00:02:58]} {[%emt 00:00:31]} 28.
Re1 {[%clk 00:03:42]} {[%emt 00:00:40]} Bd8 {[%clk 00:02:18]} {[%emt 00:00:50]}
29. h3 {[%clk 00:03:25]} {[%emt 00:00:28]} Bb6 {[%clk 00:02:11]} {[%emt
00:00:16]} 30. g4 {[%clk 00:03:30]} {[%emt 00:00:05]} Bg6 {[%clk 00:01:47]}
{[%emt 00:00:34]} 31. Re2 {[%clk 00:03:05]} {[%emt 00:00:36]} Qc7 {[%clk
00:01:44]} {[%emt 00:00:12]} 32. Kh2 {[%clk 00:03:00]} {[%emt 00:00:15]} Kh8
{[%clk 00:01:09]} {[%emt 00:00:45]} 33. Qd3 {[%clk 00:02:19]} {[%emt 00:00:52]}
Rd4 {[%clk 00:00:59]} {[%emt 00:00:20]} 34. Qf3 {[%clk 00:02:20]} {[%emt
00:00:08]} Kg8 {[%clk 00:00:52]} {[%emt 00:00:18]} 35. h4 {[%clk 00:02:00]}
{[%emt 00:00:30]} Bf7 {[%clk 00:00:57]} {[%emt 00:00:05]} 36. Qf5 {[%clk
00:01:51]} {[%emt 00:00:20]} Bxd5 {[%clk 00:00:38]} {[%emt 00:00:28]} 37. Rc2
{[%clk 00:01:56]} {[%emt 00:00:05]} Bc4 {[%clk 00:00:36]} {[%emt 00:00:12]} 38.
g5 {[%clk 00:01:47]} {[%emt 00:00:19]} Qf7 {[%clk 00:00:37]} {[%emt 00:00:08]}
39. Qc8+ {[%clk 00:01:23]} {[%emt 00:00:34]} Kh7 {[%clk 00:00:39]} {[%emt
00:00:08]} 40. Ng3 {[%clk 00:00:28]} {[%emt 00:01:05]} Rxh4+ {[%clk 00:00:27]}
{[%emt 00:00:22]} 41. Kg1 {[%clk 00:00:30]} {[%emt 00:00:09]} Be6 {[%clk
00:00:26]} {[%emt 00:00:10]} 42. Qxa6 {[%clk 00:00:28]} {[%emt 00:00:13]} Bd4
{[%clk 00:00:25]} {[%emt 00:00:12]} 43. Be4+ {[%clk 00:00:28]} {[%emt
00:00:10]} Rxe4 {[%clk 00:00:27]} {[%emt 00:00:07]} 44. Nxe4 {[%clk 00:00:36]}
{[%emt 00:00:02]} Qf4 {[%clk 00:00:35]} {[%emt 00:00:02]} 45. Qb7 {[%clk
00:00:31]} {[%emt 00:00:16]} hxg5 {[%clk 00:00:33]} {[%emt 00:00:12]} 46. Rc7
{[%clk 00:00:21]} {[%emt 00:00:20]} Qg4+ {[%clk 00:00:30]} {[%emt 00:00:12]} 47.
Kf1 {[%clk 00:00:30]} Qh3+ {[%clk 00:00:15]} {[%emt 00:00:25]} 48. Ke1 {[%clk
00:00:35]} {[%emt 00:00:06]} Qh1+ {[%clk 00:00:20]} {[%emt 00:00:05]} 49. Kd2
{[%clk 00:00:43]} {[%emt 00:00:02]} Qh6 {[%clk 00:00:28]} {[%emt 00:00:01]} 50.
Nxd6 {[%clk 00:00:20]} {[%emt 00:00:34]} g4+ {[%clk 00:00:35]} {[%emt
00:00:02]} 51. Kc2 {[%clk 00:00:25]} {[%emt 00:00:05]} Bxf2 {[%clk 00:00:32]}
{[%emt 00:00:12]} 52. Qe4+ {[%clk 00:00:34]} {[%emt 00:00:02]} Qg6 {[%clk
00:00:36]} {[%emt 00:00:06]} 53. Qxg6+ {[%clk 00:00:40]} {[%emt 00:00:04]} Kxg6
{[%clk 00:00:45]} {[%emt 00:00:02]} 54. Ne8 {[%clk 00:00:30]} {[%emt 00:00:19]}
Bf7 {[%clk 00:00:34]} {[%emt 00:00:21]} 55. Rc6+ {[%clk 00:00:37]} {[%emt
00:00:03]} Kg5 {[%clk 00:00:36]} {[%emt 00:00:07]} 56. Nxg7 {[%clk 00:00:43]}
{[%emt 00:00:06]} g3 {[%clk 00:00:38]} {[%emt 00:00:08]} 57. Ne6+ {[%clk
00:00:23]} {[%emt 00:00:30]} Bxe6 {[%clk 00:00:42]} {[%emt 00:00:06]} 58. Rxe6
{[%clk 00:00:32]} {[%emt 00:00:01]} Kf5 {[%clk 00:00:47]} {[%emt 00:00:05]} 59.
Re8 {[%clk 00:00:38]} {[%emt 00:00:04]} g2 {[%clk 00:00:55]} {[%emt 00:00:02]}
0-1

[Event "Snabb-SM för veteraner, 50+ 2019"]
[Site "Schackcentrum, Vegagatan 20, Gothenburg, Sweden"]
[Date "2019.10.05"]
[Round "4.3"]
[White "Svenn, Matti"]
[Black "Gamback, Bjorn"]
[Result "1/2-1/2"]
[TimeControl "15 minutes + 10 seconds per move from move one"]
[BlackTitle "CM"]
[WhiteFideId "1705091"]
[BlackFideId "1703161"]
[WhiteElo "2195"]
[BlackElo "2120"]

1. e4 {[%clk 00:15:19]} c5 {[%clk 00:15:19]} {[%emt 00:00:02]} 2. Nf3 {[%clk
00:15:27]} {[%emt 00:00:02]} d6 {[%clk 00:15:27]} {[%emt 00:00:02]} 3. d4
{[%clk 00:15:34]} {[%emt 00:00:03]} Nf6 {[%clk 00:15:36]} {[%emt 00:00:01]} 4.
Nc3 {[%clk 00:15:42]} {[%emt 00:00:01]} cxd4 {[%clk 00:15:44]} {[%emt
00:00:03]} 5. Nxd4 {[%clk 00:15:51]} g6 {[%clk 00:15:53]} {[%emt 00:00:01]} 6.
Be2 {[%clk 00:15:54]} {[%emt 00:00:06]} Bg7 {[%clk 00:16:01]} {[%emt 00:00:02]}
7. O-O {[%clk 00:16:02]} {[%emt 00:00:02]} O-O {[%clk 00:16:08]} {[%emt
00:00:03]} 8. Nb3 {[%clk 00:16:11]} {[%emt 00:00:02]} Be6 {[%clk 00:16:08]}
{[%emt 00:00:10]} 9. Bg5 {[%clk 00:16:18]} {[%emt 00:00:02]} Nbd7 {[%clk
00:16:03]} {[%emt 00:00:15]} 10. Kh1 {[%clk 00:16:26]} {[%emt 00:00:02]} h6
{[%clk 00:15:59]} {[%emt 00:00:15]} 11. Bh4 {[%clk 00:16:35]} Qc8 {[%clk
00:16:02]} {[%emt 00:00:07]} 12. f4 {[%clk 00:16:41]} {[%emt 00:00:04]} Bc4
{[%clk 00:15:42]} {[%emt 00:00:31]} 13. Bd3 {[%clk 00:16:49]} Bxd3 {[%clk
00:15:19]} {[%emt 00:00:33]} 14. cxd3 {[%clk 00:16:57]} {[%emt 00:00:02]} Nc5
{[%clk 00:15:19]} {[%emt 00:00:10]} 15. Rc1 {[%clk 00:16:37]} {[%emt 00:00:30]}
Nxb3 {[%clk 00:14:19]} {[%emt 00:01:10]} 16. Qxb3 {[%clk 00:16:45]} {[%emt
00:00:02]} Qe6 {[%clk 00:14:28]} {[%emt 00:00:01]} 17. Qxe6 {[%clk 00:15:34]}
{[%emt 00:01:21]} fxe6 {[%clk 00:14:36]} {[%emt 00:00:02]} 18. e5 {[%clk
00:15:43]} {[%emt 00:00:01]} dxe5 {[%clk 00:14:04]} {[%emt 00:00:43]} 19. fxe5
{[%clk 00:15:51]} {[%emt 00:00:01]} Ng4 {[%clk 00:14:13]} {[%emt 00:00:02]} 20.
d4 {[%clk 00:15:41]} {[%emt 00:00:19]} g5 {[%clk 00:14:02]} {[%emt 00:00:21]}
21. Bg3 {[%clk 00:15:47]} {[%emt 00:00:04]} Ne3 {[%clk 00:14:04]} {[%emt
00:00:09]} 22. Rfe1 {[%clk 00:14:41]} {[%emt 00:01:15]} Nf5 {[%clk 00:14:13]}
{[%emt 00:00:02]} 23. Bf2 {[%clk 00:14:49]} Rad8 {[%clk 00:14:12]} {[%emt
00:00:11]} 24. Rcd1 {[%clk 00:14:58]} Rd7 {[%clk 00:14:07]} {[%emt 00:00:16]}
25. Ne4 {[%clk 00:14:25]} {[%emt 00:00:43]} b6 {[%clk 00:14:00]} {[%emt
00:00:17]} 26. g4 {[%clk 00:14:22]} {[%emt 00:00:12]} Nh4 {[%clk 00:13:50]}
{[%emt 00:00:20]} 27. Bxh4 {[%clk 00:14:30]} {[%emt 00:00:01]} gxh4 {[%clk
00:14:00]} {[%emt 00:00:02]} 28. Kg2 {[%clk 00:14:39]} Rfd8 {[%clk 00:13:58]}
{[%emt 00:00:11]} 29. Kf3 {[%clk 00:12:38]} {[%emt 00:02:11]} Bxe5 {[%clk
00:13:55]} {[%emt 00:00:13]} 30. Rc1 {[%clk 00:11:40]} {[%emt 00:01:08]} Bxd4
{[%clk 00:13:40]} {[%emt 00:00:25]} 31. Rc6 {[%clk 00:11:48]} {[%emt 00:00:01]}
Rf8+ {[%clk 00:12:38]} {[%emt 00:01:13]} 32. Kg2 {[%clk 00:11:56]} Rf4 {[%clk
00:11:42]} {[%emt 00:01:06]} 33. Kh3 {[%clk 00:12:00]} {[%emt 00:00:06]} Kf7
{[%clk 00:11:12]} {[%emt 00:00:40]} 34. Re2 {[%clk 00:12:03]} {[%emt 00:00:07]}
Rd5 {[%clk 00:09:32]} {[%emt 00:01:51]} 35. Kxh4 {[%clk 00:12:02]} {[%emt
00:00:10]} Re5 {[%clk 00:07:09]} {[%emt 00:02:34]} 36. Ng3 {[%clk 00:11:57]}
{[%emt 00:00:14]} Rxe2 {[%clk 00:06:36]} {[%emt 00:00:43]} 37. Nxe2 {[%clk
00:12:06]} Bf6+ {[%clk 00:06:45]} {[%emt 00:00:02]} 38. Kg3 {[%clk 00:12:13]}
{[%emt 00:00:02]} Ra4 {[%clk 00:06:43]} {[%emt 00:00:12]} 39. Nc3 {[%clk
00:11:21]} {[%emt 00:01:03]} Bxc3 {[%clk 00:06:51]} {[%emt 00:00:02]} 40. bxc3
{[%clk 00:11:30]} Rxa2 {[%clk 00:07:00]} {[%emt 00:00:01]} 41. h4 {[%clk
00:11:26]} {[%emt 00:00:14]} Kf6 {[%clk 00:07:08]} {[%emt 00:00:03]} 42. Kf4
{[%clk 00:11:22]} {[%emt 00:00:13]} Ra4+ {[%clk 00:07:00]} {[%emt 00:00:18]} 43.
Kf3 {[%clk 00:11:18]} {[%emt 00:00:14]} Ke5 {[%clk 00:07:00]} {[%emt 00:00:11]}
44. Rc8 {[%clk 00:11:20]} {[%emt 00:00:08]} Rf4+ {[%clk 00:07:03]} {[%emt
00:00:06]} 45. Kg3 {[%clk 00:11:28]} {[%emt 00:00:02]} h5 {[%clk 00:06:33]}
{[%emt 00:00:41]} 46. gxh5 {[%clk 00:11:18]} {[%emt 00:00:20]} Rf1 {[%clk
00:06:29]} {[%emt 00:00:13]} 47. h6 {[%clk 00:11:21]} {[%emt 00:00:07]} Rf7
{[%clk 00:06:28]} {[%emt 00:00:11]} 48. Kg4 {[%clk 00:11:29]} {[%emt 00:00:02]}
Kf6 {[%clk 00:06:25]} {[%emt 00:00:13]} 49. Ra8 {[%clk 00:11:24]} {[%emt
00:00:15]} Kg6 {[%clk 00:06:21]} {[%emt 00:00:14]} 50. Rxa7 {[%clk 00:11:16]}
{[%emt 00:00:17]} Kxh6 {[%clk 00:06:30]} 51. Rb7 {[%clk 00:11:23]} {[%emt
00:00:04]} Kg6 {[%clk 00:05:33]} {[%emt 00:01:07]} 52. Rxb6 {[%clk 00:11:28]}
{[%emt 00:00:05]} Kf6 {[%clk 00:05:42]} 53. h5 {[%clk 00:08:53]} {[%emt
00:02:45]} Rg7+ {[%clk 00:05:51]} {[%emt 00:00:02]} 54. Kf4 {[%clk 00:09:02]}
Rg1 {[%clk 00:06:00]} {[%emt 00:00:01]} 55. Rb5 {[%clk 00:09:00]} {[%emt
00:00:12]} Rc1 {[%clk 00:05:51]} {[%emt 00:00:19]} 56. Rc5 {[%clk 00:09:08]}
{[%emt 00:00:02]} e5+ {[%clk 00:05:56]} {[%emt 00:00:05]} 57. Ke4 {[%clk
00:09:14]} {[%emt 00:00:03]} Rh1 {[%clk 00:06:00]} {[%emt 00:00:06]} 58. Rc8
{[%clk 00:08:36]} {[%emt 00:00:49]} Rxh5 {[%clk 00:05:56]} {[%emt 00:00:14]} 59.
c4 {[%clk 00:08:44]} {[%emt 00:00:02]} Ke6 {[%clk 00:05:59]} {[%emt 00:00:07]}
60. Rc6+ {[%clk 00:08:42]} {[%emt 00:00:11]} Kd7 {[%clk 00:06:05]} {[%emt
00:00:03]} 61. Ra6 {[%clk 00:08:49]} {[%emt 00:00:04]} Rh4+ {[%clk 00:06:07]}
{[%emt 00:00:09]} 62. Kxe5 {[%clk 00:08:53]} {[%emt 00:00:06]} Rxc4 {[%clk
00:06:14]} {[%emt 00:00:03]} 63. Ra7+ {[%clk 00:09:02]} Ke8 {[%clk 00:06:06]}
{[%emt 00:00:18]} 64. Ke6 {[%clk 00:09:09]} {[%emt 00:00:02]} Re4+ {[%clk
00:06:14]} {[%emt 00:00:02]} 65. Kf5 {[%clk 00:09:18]} {[%emt 00:00:02]} Re1
{[%clk 00:06:22]} {[%emt 00:00:02]} 66. Rb7 {[%clk 00:09:24]} {[%emt 00:00:04]}
Kf7 {[%clk 00:06:29]} {[%emt 00:00:03]} 67. Ra7 {[%clk 00:09:32]} {[%emt
00:00:02]} 1/2-1/2

[Event "Snabb-SM för veteraner, 50+ 2019"]
[Site "Schackcentrum, Vegagatan 20, Gothenburg, Sweden"]
[Date "2019.10.05"]
[Round "4.4"]
[White "Eriksson, Kristian"]
[Black "Madebrink, Lars"]
[Result "1-0"]
[TimeControl "15 minutes + 10 seconds per move from move one"]
[WhiteFideId "1705172"]
[BlackFideId "1701347"]
[WhiteElo "2025"]
[BlackElo "2179"]

1. e4 {[%clk 00:15:18]} {[%emt 00:00:02]} d5 {[%clk 00:15:20]} 2. exd5 {[%clk
00:15:25]} {[%emt 00:00:04]} Nf6 {[%clk 00:15:29]} 3. d4 {[%clk 00:15:15]}
{[%emt 00:00:20]} Bg4 {[%clk 00:15:35]} {[%emt 00:00:04]} 4. Nf3 {[%clk
00:15:14]} {[%emt 00:00:11]} Nxd5 {[%clk 00:14:56]} {[%emt 00:00:49]} 5. Be2
{[%clk 00:15:11]} {[%emt 00:00:13]} e6 {[%clk 00:15:01]} {[%emt 00:00:05]} 6.
O-O {[%clk 00:15:02]} {[%emt 00:00:19]} Bd6 {[%clk 00:14:09]} {[%emt 00:01:00]}
7. c4 {[%clk 00:14:19]} {[%emt 00:00:54]} Nf4 {[%clk 00:13:53]} {[%emt
00:00:26]} 8. Bxf4 {[%clk 00:12:52]} {[%emt 00:01:38]} Bxf4 {[%clk 00:14:01]}
{[%emt 00:00:02]} 9. h3 {[%clk 00:12:25]} {[%emt 00:00:37]} Bh5 {[%clk
00:13:58]} {[%emt 00:00:12]} 10. Qb3 {[%clk 00:12:30]} {[%emt 00:00:06]} b6
{[%clk 00:12:48]} {[%emt 00:01:21]} 11. Qb5+ {[%clk 00:12:38]} {[%emt
00:00:02]} c6 {[%clk 00:12:40]} {[%emt 00:00:17]} 12. Qxh5 {[%clk 00:12:45]}
{[%emt 00:00:03]} O-O {[%clk 00:12:49]} {[%emt 00:00:02]} 13. Nc3 {[%clk
00:12:34]} {[%emt 00:00:21]} Nd7 {[%clk 00:12:42]} {[%emt 00:00:17]} 14. Rad1
{[%clk 00:11:45]} {[%emt 00:00:58]} f5 {[%clk 00:11:53]} {[%emt 00:00:59]} 15.
Ne5 {[%clk 00:08:39]} {[%emt 00:03:16]} g6 {[%clk 00:11:39]} {[%emt 00:00:25]}
16. Qf3 {[%clk 00:08:29]} {[%emt 00:00:19]} Bxe5 {[%clk 00:11:43]} {[%emt
00:00:07]} 17. dxe5 Nxe5 {[%clk 00:11:51]} 18. Qe3 {[%clk 00:07:58]} {[%emt
00:00:47]} Qf6 {[%clk 00:12:00]} {[%emt 00:00:01]} 19. f4 {[%clk 00:07:42]}
{[%emt 00:00:26]} Nf7 {[%clk 00:12:01]} {[%emt 00:00:09]} 20. Bf3 {[%clk
00:07:22]} {[%emt 00:00:30]} e5 {[%clk 00:12:01]} {[%emt 00:00:11]} 21. fxe5
{[%clk 00:06:51]} {[%emt 00:00:42]} Nxe5 {[%clk 00:12:08]} {[%emt 00:00:02]} 22.
b3 {[%clk 00:06:29]} {[%emt 00:00:31]} Rae8 {[%clk 00:12:16]} {[%emt 00:00:03]}
23. Qd2 {[%clk 00:05:47]} {[%emt 00:00:51]} g5 {[%clk 00:11:50]} {[%emt
00:00:36]} 24. c5 {[%clk 00:05:32]} {[%emt 00:00:26]} Qg7 {[%clk 00:10:42]}
{[%emt 00:01:18]} 25. cxb6 {[%clk 00:05:31]} {[%emt 00:00:11]} axb6 {[%clk
00:10:42]} {[%emt 00:00:10]} 26. Na4 {[%clk 00:05:14]} {[%emt 00:00:27]} g4
{[%clk 00:10:50]} {[%emt 00:00:02]} 27. hxg4 {[%clk 00:05:21]} {[%emt
00:00:04]} fxg4 {[%clk 00:10:53]} {[%emt 00:00:07]} 28. Bxc6 {[%clk 00:04:44]}
{[%emt 00:00:48]} Nf3+ {[%clk 00:10:22]} {[%emt 00:00:40]} 29. Bxf3 {[%clk
00:04:39]} {[%emt 00:00:14]} gxf3 {[%clk 00:10:30]} {[%emt 00:00:03]} 30. Qd5+
{[%clk 00:04:34]} {[%emt 00:00:15]} Kh8 {[%clk 00:10:22]} {[%emt 00:00:18]} 31.
Rxf3 {[%clk 00:04:29]} {[%emt 00:00:15]} Rg8 {[%clk 00:10:09]} {[%emt
00:00:22]} 32. Rf7 {[%clk 00:04:22]} {[%emt 00:00:17]} Qg4 {[%clk 00:09:45]}
{[%emt 00:00:35]} 33. Qd4+ {[%clk 00:03:55]} {[%emt 00:00:37]} Qxd4+ {[%clk
00:09:51]} {[%emt 00:00:04]} 34. Rxd4 {[%clk 00:04:04]} Re2 {[%clk 00:09:59]}
35. Rf2 {[%clk 00:04:02]} {[%emt 00:00:12]} Re1+ {[%clk 00:10:08]} {[%emt
00:00:01]} 36. Kh2 {[%clk 00:04:09]} {[%emt 00:00:03]} b5 {[%clk 00:10:17]} 37.
Nb6 {[%clk 00:04:03]} {[%emt 00:00:17]} Rg6 {[%clk 00:10:10]} {[%emt 00:00:17]}
38. Rd8+ {[%clk 00:04:00]} {[%emt 00:00:14]} Kg7 {[%clk 00:10:18]} {[%emt
00:00:02]} 39. Rd7+ {[%clk 00:04:03]} {[%emt 00:00:07]} Kh6 {[%clk 00:10:10]}
{[%emt 00:00:18]} 40. Nd5 {[%clk 00:03:48]} {[%emt 00:00:24]} Kg5 {[%clk
00:09:37]} {[%emt 00:00:43]} 41. Rxh7 {[%clk 00:03:42]} {[%emt 00:00:16]} Re5
{[%clk 00:09:35]} {[%emt 00:00:12]} 42. Ne7 {[%clk 00:03:32]} {[%emt 00:00:20]}
Rge6 {[%clk 00:09:12]} {[%emt 00:00:32]} 43. Rff7 {[%clk 00:02:50]} {[%emt
00:00:54]} Re2 {[%clk 00:09:08]} {[%emt 00:00:14]} 44. Rhg7+ {[%clk 00:02:51]}
{[%emt 00:00:09]} Kh5 {[%clk 00:09:07]} {[%emt 00:00:11]} 45. Ng8 {[%clk
00:02:30]} {[%emt 00:00:31]} Rxa2 {[%clk 00:09:09]} {[%emt 00:00:08]} 46. Rf5+
{[%clk 00:02:35]} {[%emt 00:00:04]} Kh4 {[%clk 00:09:12]} {[%emt 00:00:08]} 47.
Nf6 {[%clk 00:02:23]} {[%emt 00:00:22]} Rb2 {[%clk 00:09:02]} {[%emt 00:00:20]}
48. Rg4# {[%emt 00:00:06]} 1-0

[Event "Snabb-SM för veteraner, 50+ 2019"]
[Site "Schackcentrum, Vegagatan 20, Gothenburg, Sweden"]
[Date "2019.10.05"]
[Round "4.5"]
[White "Jacobsson, Lennart"]
[Black "Andersson, Johan"]
[Result "0-1"]
[TimeControl "15 minutes + 10 seconds per move from move one"]
[WhiteFideId "1753320"]
[BlackFideId "1703935"]
[WhiteElo "1833"]
[BlackElo "2152"]

1. e4 {[%clk 00:15:03]} {[%emt 00:00:16]} d6 {[%clk 00:15:18]} {[%emt
00:00:02]} 2. d4 {[%clk 00:15:08]} {[%emt 00:00:05]} Nf6 {[%clk 00:15:26]}
{[%emt 00:00:02]} 3. Nc3 {[%clk 00:15:07]} {[%emt 00:00:10]} c6 {[%clk
00:15:34]} {[%emt 00:00:03]} 4. Bg5 {[%clk 00:15:07]} {[%emt 00:00:10]} Nbd7
{[%clk 00:15:41]} {[%emt 00:00:03]} 5. f4 {[%clk 00:15:05]} {[%emt 00:00:12]}
h6 {[%clk 00:15:40]} {[%emt 00:00:11]} 6. Bh4 {[%clk 00:15:14]} {[%emt
00:00:02]} Qa5 {[%clk 00:15:33]} {[%emt 00:00:16]} 7. Bd3 {[%clk 00:14:37]}
{[%emt 00:00:47]} e5 {[%clk 00:15:35]} {[%emt 00:00:08]} 8. Nge2 {[%clk
00:13:49]} {[%emt 00:00:57]} exf4 {[%clk 00:13:17]} {[%emt 00:02:29]} 9. Bxf6
{[%clk 00:13:48]} {[%emt 00:00:11]} Nxf6 {[%clk 00:13:25]} {[%emt 00:00:02]} 10.
Nxf4 {[%clk 00:13:47]} {[%emt 00:00:11]} Bg4 {[%clk 00:11:20]} {[%emt
00:02:15]} 11. Qd2 {[%clk 00:13:52]} {[%emt 00:00:05]} g5 {[%clk 00:10:13]}
{[%emt 00:01:17]} 12. Nfe2 {[%clk 00:13:39]} {[%emt 00:00:23]} Bg7 {[%clk
00:09:34]} {[%emt 00:00:49]} 13. O-O {[%clk 00:13:25]} {[%emt 00:00:24]} O-O-O
{[%clk 00:08:00]} {[%emt 00:01:45]} 14. Rab1 {[%clk 00:11:35]} {[%emt
00:02:00]} Rhe8 {[%clk 00:06:55]} {[%emt 00:01:15]} 15. b4 {[%clk 00:11:17]}
{[%emt 00:00:28]} Qb6 {[%clk 00:06:23]} {[%emt 00:00:38]} 16. Na4 {[%clk
00:06:00]} {[%emt 00:05:31]} Qc7 {[%clk 00:06:31]} {[%emt 00:00:02]} 17. Ng3
{[%clk 00:05:42]} {[%emt 00:00:28]} Nh5 {[%clk 00:05:24]} {[%emt 00:01:17]} 18.
c3 {[%clk 00:05:04]} {[%emt 00:00:49]} Nf4 {[%clk 00:04:28]} {[%emt 00:01:06]}
19. b5 {[%clk 00:04:50]} {[%emt 00:00:23]} Qa5 {[%clk 00:03:12]} {[%emt
00:01:26]} 20. Qc2 {[%clk 00:03:51]} {[%emt 00:01:09]} Nxd3 {[%clk 00:03:00]}
{[%emt 00:00:22]} 21. Rxf7 {[%clk 00:03:17]} {[%emt 00:00:44]} Rd7 {[%clk
00:02:57]} {[%emt 00:00:14]} 22. Rxd7 {[%clk 00:02:17]} {[%emt 00:01:10]} Bxd7
{[%clk 00:03:04]} {[%emt 00:00:02]} 23. b6 {[%clk 00:01:41]} {[%emt 00:00:47]}
a6 {[%clk 00:02:45]} {[%emt 00:00:28]} 24. Nh5 {[%clk 00:00:34]} {[%emt
00:01:17]} Bh8 {[%clk 08:02:45]} {[%emt 00:00:09]} 25. g3 {[%clk 00:00:40]}
{[%emt 00:00:05]} c5 {[%clk 00:02:17]} {[%emt 00:00:38]} 26. Qxd3 {[%clk
00:00:40]} {[%emt 00:00:10]} Bxa4 {[%clk 00:02:16]} {[%emt 00:00:11]} 27. e5
{[%clk 00:00:35]} {[%emt 00:00:15]} dxe5 {[%clk 00:01:50]} {[%emt 00:00:36]} 28.
Qh7 {[%clk 00:00:41]} {[%emt 00:00:05]} Bd7 {[%clk 00:01:50]} {[%emt 00:00:09]}
29. Qxh6 {[%clk 00:00:32]} {[%emt 00:00:19]} Qa4 {[%clk 00:01:18]} {[%emt
00:00:41]} 30. d5 {[%clk 00:00:20]} {[%emt 00:00:23]} Bf5 {[%clk 00:00:43]}
{[%emt 00:00:44]} 31. Rf1 {[%clk 00:00:20]} {[%emt 00:00:11]} Qd7 {[%clk
00:00:43]} {[%emt 00:00:09]} 32. Nf6 {[%clk 00:00:28]} {[%emt 00:00:03]} Bxf6
{[%clk 00:00:50]} {[%emt 00:00:04]} 33. Qxf6 {[%clk 00:00:37]} Bd3 {[%clk
00:00:40]} {[%emt 00:00:18]} 34. Rd1 {[%clk 00:00:42]} {[%emt 00:00:07]} c4
{[%clk 00:00:42]} {[%emt 00:00:08]} 35. d6 {[%clk 00:00:39]} {[%emt 00:00:13]}
Re6 {[%clk 00:00:36]} {[%emt 00:00:15]} 36. Qxg5 {[%clk 00:00:27]} {[%emt
00:00:22]} Qxd6 {[%clk 00:00:35]} {[%emt 00:00:11]} 37. Qg8+ {[%clk 00:00:31]}
{[%emt 00:00:06]} Kd7 {[%clk 00:00:41]} {[%emt 00:00:03]} 38. Qf7+ {[%clk
00:00:34]} {[%emt 00:00:07]} Qe7 {[%clk 00:00:42]} {[%emt 00:00:09]} 39. Qf3
{[%clk 00:00:43]} {[%emt 00:00:01]} Qc5+ {[%clk 00:00:48]} {[%emt 00:00:05]} 40.
Kh1 {[%clk 00:00:45]} {[%emt 00:00:08]} Qxb6 {[%clk 00:00:56]} {[%emt
00:00:02]} 41. Qf7+ {[%clk 00:00:51]} {[%emt 00:00:04]} Re7 {[%clk 00:00:59]}
{[%emt 00:00:05]} 42. Qxc4 {[%clk 00:00:57]} {[%emt 00:00:07]} e4 {[%clk
00:00:57]} {[%emt 00:00:11]} 43. Qd5+ {[%clk 00:01:06]} Kc7 {[%clk 00:01:00]}
{[%emt 00:00:08]} 44. c4 {[%clk 00:01:13]} {[%emt 00:00:03]} Qc6 {[%clk
00:01:05]} {[%emt 00:00:05]} 45. Qa5+ {[%clk 00:01:19]} {[%emt 00:00:05]} Kc8
{[%clk 00:01:09]} {[%emt 00:00:06]} 46. Qf5+ {[%clk 00:01:25]} {[%emt
00:00:04]} Kb8 {[%clk 00:01:12]} {[%emt 00:00:06]} 47. Qf8+ {[%clk 00:01:30]}
{[%emt 00:00:05]} Re8 {[%clk 00:01:20]} {[%emt 00:00:02]} 48. Qf4+ {[%clk
00:01:39]} Ka8 {[%clk 00:01:25]} {[%emt 00:00:05]} 49. Qe3 {[%clk 00:01:47]}
{[%emt 00:00:03]} Qxc4 {[%clk 00:01:31]} {[%emt 00:00:04]} 50. h4 {[%clk
00:01:55]} {[%emt 00:00:02]} Qe6 {[%clk 00:01:29]} {[%emt 00:00:12]} 51. Kh2
{[%clk 00:02:01]} {[%emt 00:00:05]} Rd8 {[%clk 00:01:27]} {[%emt 00:00:11]} 52.
Qg5 {[%clk 00:02:08]} {[%emt 00:00:03]} Qxa2+ {[%clk 00:01:32]} {[%emt
00:00:06]} 53. Qxd8+ {[%emt 00:00:05]} 0-1